fUSD/lending_fUSD_20260424
["ID","MTS","AMOUNT","RATE_DAILY","PERIOD"]
[421085522,1777005054023,-1178.84,0.00013698,2]
[421085523,1777005054032,-1178.84,0.00013698,2]
[421085524,1777005054041,-1178.84,0.00013698,2]
[421085525,1777005054051,-1178.84,0.00013698,2]
[421085526,1777005054060,-1178.84,0.00013698,2]
[421085527,1777005054070,-1178.84,0.00013698,2]
[421085528,1777005054079,-1178.84,0.00013698,2]
[421085529,1777005054089,-1178.84,0.00013698,2]
[421085530,1777005054099,-1178.84,0.00013698,2]
[421085531,1777005054109,-1178.84,0.00013698,2]
[421085532,1777005054118,-1178.8450741,0.00013698,2]
[421085533,1777005054127,-500.0,0.00013698,2]
[421085534,1777005054136,-500.0,0.00013698,2]
[421085535,1777005054146,-500.0,0.00013698,2]
[421085536,1777005054155,-500.0,0.00013698,2]
[421085537,1777005054164,-500.0,0.00013698,2]
[421085538,1777005054173,-500.0,0.00013698,2]
[421085539,1777005054183,-517.20362133,0.00013698,2]
[421085540,1777005054192,-500.0,0.00013699,2]
[421085541,1777005054202,-2000.0,0.00013699,2]
[421085542,1777005054212,-500.0,0.00013699,2]
[421085543,1777005054221,-500.0,0.00013699,2]
[421085544,1777005054231,-500.0,0.00013699,2]
[421085545,1777005054240,-500.0,0.00013699,2]
[421085546,1777005054250,-175.559804,0.00013699,2]
[421085547,1777005054259,-175.559804,0.00013699,2]
[421085548,1777005054269,-175.559804,0.00013699,2]
[421085549,1777005054278,-175.559804,0.00013699,2]
[421085550,1777005054287,-175.559804,0.00013699,2]
[421085551,1777005054596,-175.559804,0.00013699,2]
[421085552,1777005054609,-175.559804,0.00013699,2]
[421085553,1777005054618,-175.559804,0.00013699,2]
[421085554,1777005054627,-175.559804,0.00013699,2]
[421085555,1777005054636,-175.559804,0.00013699,2]
[421085556,1777005054646,-175.559804,0.00013699,2]
[421085557,1777005054656,-175.559804,0.00013699,2]
[421085558,1777005054667,-175.559804,0.00013699,2]
[421085559,1777005054677,-175.559804,0.00013699,2]
[421085560,1777005054686,-175.559804,0.00013699,2]
[421085561,1777005054697,-175.559804,0.00013699,2]
[421085562,1777005054707,-175.559804,0.00013699,2]
[421085563,1777005054717,-175.559804,0.00013699,2]
[421085564,1777005054727,-175.559804,0.00013699,2]
[421085565,1777005054738,-175.559795,0.00013699,2]
[421085566,1777005054748,-1363.993877,0.00013699,2]
[421085567,1777005054757,-1363.993877,0.00013699,2]
[421085568,1777005054768,-1363.993877,0.00013699,2]
[421085569,1777005054778,-1363.993877,0.00013699,2]
[421085570,1777005054789,-1363.993877,0.00013699,2]
[421085571,1777005054799,-1363.993877,0.00013699,2]
[421085572,1777005054809,-1363.993877,0.00013699,2]
[421085573,1777005054819,-1363.993877,0.00013699,2]
[421085574,1777005054829,-1363.993877,0.00013699,2]
[421085575,1777005054839,-1363.993877,0.00013699,2]
[421085576,1777005054848,-1363.993877,0.00013699,2]
[421085577,1777005054858,-1363.993877,0.00013699,2]
[421085578,1777005054867,-1363.993877,0.00013699,2]
[421085579,1777005054879,-1363.993877,0.00013699,2]
[421085580,1777005054889,-1363.993877,0.00013699,2]
[421085581,1777005054900,-1363.993877,0.00013699,2]
[421085582,1777005054911,-1363.993877,0.00013699,2]
[421085583,1777005054921,-1363.993877,0.00013699,2]
[421085584,1777005054931,-1363.993877,0.00013699,2]
[421085585,1777005054940,-1363.99388,0.00013699,2]
[421085586,1777005054950,-287.450471,0.00013699,2]
[421085587,1777005054959,-287.450471,0.00013699,2]
[421085588,1777005054969,-287.450471,0.00013699,2]
[421085589,1777005054978,-287.450471,0.00013699,2]
[421085590,1777005054988,-287.450471,0.00013699,2]
[421085591,1777005054998,-287.450471,0.00013699,2]
[421085592,1777005055008,-287.450471,0.00013699,2]
[421085593,1777005055017,-287.450471,0.00013699,2]
[421085594,1777005055027,-287.450471,0.00013699,2]
[421085595,1777005055037,-287.450471,0.00013699,2]
[421085596,1777005055046,-287.450471,0.00013699,2]
[421085597,1777005055055,-287.450471,0.00013699,2]
[421085598,1777005055065,-287.450471,0.00013699,2]
[421085599,1777005055074,-287.450471,0.00013699,2]
[421085600,1777005055084,-287.450471,0.00013699,2]
[421085601,1777005055093,-287.450471,0.00013699,2]
[421085602,1777005055102,-287.450471,0.00013699,2]
[421085603,1777005055112,-287.450471,0.00013699,2]
[421085604,1777005055121,-287.450471,0.00013699,2]
[421085605,1777005055132,-287.450473,0.00013699,2]
[421085606,1777005055143,-153.0,0.00013699,2]
[421085607,1777005055152,-153.60852967,0.00013699,2]
[421085608,1777005055162,-423.0,0.00013699,2]
[421085609,1777005055172,-409.0,0.00013699,2]
[421085610,1777005055182,-409.0,0.00013699,2]
[421085611,1777005055191,-409.0,0.00013699,2]
[421085612,1777005055200,-409.0,0.00013699,2]
[421085613,1777005055210,-409.0,0.00013699,2]
[421085614,1777005055220,-169.52894608,0.00013699,2]
[421085615,1777005055230,-393.0,0.00013699,2]
[421085616,1777005055240,-487.0,0.00013699,2]
[421085617,1777005055250,-393.0,0.00013699,2]
[421085618,1777005055259,-393.0,0.00013699,2]
[421085619,1777005055268,-370.0,0.00013699,2]
[421085620,1777005055278,-463.0,0.00013699,2]
[421085621,1777005055289,-433.0,0.00013699,2]
[421085622,1777005055299,-291.85827015,0.00013699,2]
[421085623,1777005055309,-414.0,0.00013699,2]
[421085624,1777005055319,-224.0,0.00013699,2]
[421085625,1777005055329,-400.0,0.00013699,2]
[421085626,1777005055338,-494.0,0.00013699,2]
[421085627,1777005055348,-385.0,0.00013699,2]
[421085628,1777005055358,-420.0,0.00013699,2]
[421085629,1777005055367,-385.0,0.00013699,2]
[421085630,1777005055376,-385.0,0.00013699,2]
[421085631,1777005055386,-385.0,0.00013699,2]
[421085632,1777005055396,-385.0,0.00013699,2]
[421085633,1777005055406,-194.0,0.00013699,2]
[421085634,1777005055417,-385.0,0.00013699,2]
[421085635,1777005055427,-385.0,0.00013699,2]
[421085636,1777005055437,-178.0,0.00013699,2]
[421085637,1777005055447,-385.0,0.00013699,2]
[421085638,1777005055456,-385.0,0.00013699,2]
[421085639,1777005055466,-479.0,0.00013699,2]
[421085640,1777005055476,-385.0,0.00013699,2]
[421085641,1777005055486,-382.45842719,0.00013699,2]
[421085642,1777005055495,-472.90967454,0.00013699,2]
[421085643,1777005055504,-726.0,0.00013699,2]
[421085644,1777005055514,-726.0,0.00013699,2]
[421085645,1777005055524,-726.0,0.00013699,2]
[421085646,1777005055533,-726.0,0.00013699,2]
[421085647,1777005055542,-726.0,0.00013699,2]
[421085648,1777005055553,-726.0,0.00013699,2]
[421085649,1777005055562,-726.0,0.00013699,2]
[421085650,1777005055572,-726.0,0.00013699,2]
[421085651,1777005055581,-726.0,0.00013699,2]
[421085652,1777005055590,-726.0,0.00013699,2]
[421085653,1777005055599,-726.0,0.00013699,2]
[421085654,1777005055609,-726.0,0.00013699,2]
[421085655,1777005055618,-726.0,0.00013699,2]
[421085656,1777005055627,-726.0,0.00013699,2]
[421085657,1777005055637,-726.0,0.00013699,2]
[421085658,1777005055647,-726.0,0.00013699,2]
[421085659,1777005055656,-726.0,0.00013699,2]
[421085660,1777005055665,-726.0,0.00013699,2]
[421085661,1777005055674,-726.0,0.00013699,2]
[421085662,1777005055683,-726.0,0.00013699,2]
[421085663,1777005055693,-726.0,0.00013699,2]
[421085664,1777005055702,-726.0,0.00013699,2]
[421085665,1777005055713,-726.0,0.00013699,2]
[421085666,1777005055722,-598.35026889,0.00013699,2]
[421085667,1777005055732,-150.0,0.00013699,2]
[421085668,1777005055741,-180.13,0.000137,2]
[421085669,1777005055750,-500.0,0.00013792,2]
[421085670,1777005055760,-500.0,0.00013792,2]
[421085671,1777005055769,-500.0,0.00013792,2]
[421085672,1777005055779,-500.0,0.00013792,2]
[421085673,1777005055788,-500.0,0.00013792,2]
[421085674,1777005055797,-500.0,0.00013792,2]
[421085675,1777005055806,-500.0,0.00013792,2]
[421085676,1777005055815,-500.0,0.00013792,2]
[421085677,1777005055825,-515.0,0.00013792,2]
[421085678,1777005055836,-239.77551036,0.000138,5]
[421085679,1777005055846,-290.0,0.00013824,2]
[421085680,1777005055855,-200.0,0.00013836,2]
[421085681,1777005055868,-9035.0,0.00013846,2]
[421085682,1777005055879,-775.47832561,0.00013868,2]
[421085683,1777005055888,-621.78829552,0.00013871,2]
[421085684,1777005055897,-1581.0,0.00013895,2]
[421085685,1777005055909,-176.0,0.00013895,2]
[421085686,1777005055920,-197.82,0.00013898,2]
[421085687,1777005055930,-2400.0,0.000139,5]
[421085688,1777005055939,-150.0,0.00013923,2]
[421085689,1777005055950,-150.0,0.00013923,2]
[421085690,1777005055959,-150.0,0.00013923,2]
[421085691,1777005055969,-150.0,0.00013923,2]
[421085692,1777005055978,-150.0,0.00013923,2]
[421085693,1777005055987,-270.0,0.00013923,2]
[421085694,1777005055996,-2360.0,0.00013967,2]
[421085695,1777005056006,-666.0,0.00013967,2]
[421085696,1777005056015,-571.0,0.00013967,2]
[421085697,1777005056025,-5872.0,0.00013967,2]
[421085698,1777005056035,-681.0,0.00013967,2]
[421085699,1777005056045,-256.0,0.00013967,2]
[421085700,1777005056054,-951.0,0.00013967,2]
[421085701,1777005056064,-1923.0,0.00013967,2]
[421085702,1777005056075,-1999.0,0.00013967,2]
[421085703,1777005056086,-309.54157,0.00014,2]
[421085704,1777005056095,-150.0,0.00014145,2]
[421085705,1777005056105,-150.0,0.00014145,2]
[421085706,1777005056114,-281.0,0.00014145,2]
[421085707,1777005056125,-1187.0,0.00014198,2]
[421085708,1777005056135,-960.2,0.00014214,2]
[421085709,1777005056144,-172.0,0.00014258,2]
[421085710,1777005056153,-250.0,0.00014365,2]
[421085711,1777005056163,-250.0,0.00014365,2]
[421085712,1777005056174,-250.0,0.00014365,2]
[421085713,1777005056185,-250.0,0.00014365,2]
[421085714,1777005056195,-250.0,0.00014365,2]
[421085715,1777005056205,-250.0,0.00014365,2]
[421085716,1777005056216,-273.0,0.00014365,2]
[421085717,1777005056227,-710.0,0.00014376,2]
[421085718,1777005056236,-506.0,0.00014376,2]
[421085719,1777005056247,-200.0,0.00014384,2]
[421085720,1777005056258,-150.0,0.00014416,2]
[421085721,1777005056267,-150.0,0.00014416,2]
[421085722,1777005056277,-150.0,0.00014416,2]
[421085723,1777005056289,-274.0,0.00014416,2]
[421085724,1777005056299,-308.21422335,0.0001443,21]
[421085725,1777005056310,-1750.18,0.00014531,2]
[421085726,1777005056320,-1264.98,0.00014531,2]
[421085727,1777005056329,-698.23,0.00014531,2]
[421085728,1777005056339,-1266.0,0.00014699,2]
[421085729,1777005056348,-1219.0,0.00014699,2]
[421085730,1777005056357,-927.0,0.00014699,2]
[421085731,1777005056366,-1349.0,0.00014699,2]
[421085732,1777005056375,-6032.0,0.00014699,2]
[421085733,1777005056384,-150.0,0.00014764,2]
[421085734,1777005056394,-150.0,0.00014764,2]
[421085735,1777005056403,-150.0,0.00014764,2]
[421085736,1777005056412,-150.0,0.00014764,2]
[421085737,1777005056421,-150.0,0.00014764,2]
[421085738,1777005056430,-150.0,0.00014764,2]
[421085739,1777005056439,-150.0,0.00014764,2]
[421085740,1777005056449,-150.0,0.00014764,2]
[421085741,1777005056462,-243.0,0.00014764,2]
[421085742,1777005056473,-503.0,0.0001483,3]
[421085743,1777005056484,-4795.0,0.0001485,2]
[421085744,1777005056493,-400.0,0.0001487,2]
[421085745,1777005056502,-200.0,0.00014932,2]
[421085746,1777005056512,-2360.0,0.00014967,2]
[421085747,1777005056521,-666.0,0.00014967,2]
[421085748,1777005056531,-571.0,0.00014967,2]
[421085749,1777005056540,-5872.0,0.00014967,2]
[421085750,1777005056550,-681.0,0.00014967,2]
[421085751,1777005056559,-256.0,0.00014967,2]
[421085752,1777005056569,-951.0,0.00014967,2]
[421085753,1777005056578,-1923.0,0.00014967,2]
[421085754,1777005056588,-1999.0,0.00014967,2]
[421085755,1777005056598,-1200.0,0.00014992,2]
[421085756,1777005056607,-2900.0,0.00014992,2]
[421085757,1777005056617,-500.0,0.00015,14]
[421085758,1777005056626,-163.0,0.00015,2]
[421085759,1777005056636,-1100.0,0.00015,2]
[421085760,1777005056646,-558.0,0.00015,2]
[421085761,1777005056655,-554.0,0.00015,2]
[421085762,1777005056665,-300.0,0.00015,2]
[421085763,1777005056674,-160.0,0.00015,2]
[421085764,1777005056683,-151.0,0.00015068,2]
[421085765,1777005056693,-3197.0,0.00015113,2]
[421085766,1777005056702,-151.0,0.00015123,2]
[421085767,1777005056711,-478.03,0.0001513,2]
[421085768,1777005056720,-211.71,0.00015132,2]
[421085769,1777005056730,-151.0,0.0001516,2]
[421085770,1777005056739,-151.0,0.00015161,2]
[421085771,1777005056748,-151.0,0.00015164,2]
[421085772,1777005056758,-151.0,0.00015178,2]
[421085773,1777005056767,-300.0,0.0001518,2]
[421085774,1777005056777,-960.2,0.00015181,2]
[421085775,1777005056786,-960.2,0.00015181,2]
[421085776,1777005056795,-960.2,0.00015181,2]
[421085777,1777005056804,-960.2,0.00015181,2]
[421085778,1777005056815,-960.40772623,0.00015181,2]
[421085779,1777005056824,-2818.0,0.00015229,2]
[421085780,1777005056834,-5769.0,0.0001523,2]
[421085781,1777005056843,-151.0,0.00015233,2]
[421085782,1777005056853,-151.0,0.00015288,2]
[421085783,1777005056862,-151.0,0.00015343,2]
[421085784,1777005056872,-710.0,0.00015376,2]
[421085785,1777005056881,-506.0,0.00015376,2]
[421085786,1777005056891,-151.0,0.00015398,2]
[421085787,1777005056900,-151.0,0.00015453,2]
[421085788,1777005056910,-200.0,0.0001548,2]
[421085789,1777005056920,-200.0,0.000155,5]
[421085790,1777005056929,-200.17560874,0.000155,5]
[421085791,1777005056938,-200.0,0.000155,5]
[421085792,1777005056948,-200.0,0.000155,5]
[421085793,1777005056957,-151.0,0.00015508,2]
[421085794,1777005056969,-2818.0,0.00015549,2]
[421085795,1777005056978,-151.0,0.00015563,2]
[421085796,1777005056988,-151.0,0.00015618,2]
[421085797,1777005056997,-250.0,0.0001565,2]
[421085798,1777005057006,-160.42122537,0.00015761,2]
[421085799,1777005057015,-865.0,0.00015869,2]
[421085800,1777005057025,-500.0,0.0001589,2]
[421085801,1777005057034,-500.0,0.0001589,2]
[421085802,1777005057044,-500.0,0.0001589,2]
[421085803,1777005057053,-500.0,0.0001589,2]
[421085804,1777005057062,-500.0,0.0001589,2]
[421085805,1777005057071,-500.0,0.0001589,2]
[421085806,1777005057081,-500.0,0.0001589,2]
[421085807,1777005057090,-500.0,0.0001589,2]
[421085808,1777005057099,-500.0,0.0001589,2]
[421085809,1777005057108,-500.0,0.0001589,2]
[421085810,1777005057118,-500.0,0.0001589,2]
[421085811,1777005057127,-500.0,0.0001589,2]
[421085812,1777005057137,-500.0,0.0001589,2]
[421085813,1777005057146,-500.0,0.0001589,2]
[421085814,1777005057155,-500.0,0.0001589,2]
[421085815,1777005057164,-500.0,0.0001589,2]
[421085816,1777005057174,-500.0,0.0001589,2]
[421085817,1777005057183,-500.0,0.0001589,2]
[421085818,1777005057192,-500.0,0.0001589,2]
[421085819,1777005057201,-500.0,0.0001589,2]
[421085820,1777005057210,-500.0,0.0001589,2]
[421085821,1777005057220,-500.0,0.0001589,2]
[421085822,1777005057229,-500.0,0.0001589,2]
[421085823,1777005057238,-500.0,0.0001589,2]
[421085824,1777005057247,-500.0,0.0001589,2]
[421085825,1777005057256,-500.0,0.0001589,2]
[421085826,1777005057266,-172.86893701,0.0001589,2]
[421085827,1777005057276,-182.5,0.000159,2]
[421085828,1777005057285,-150.00985826,0.000159,2]
[421085829,1777005057294,-150.0885672,0.000159,2]
[421085830,1777005057303,-150.0,0.000159,2]
[421085831,1777005057312,-2360.0,0.00015967,2]
[421085832,1777005057322,-666.0,0.00015967,2]
[421085833,1777005057331,-571.0,0.00015967,2]
[421085834,1777005057340,-5872.0,0.00015967,2]
[421085835,1777005057349,-681.0,0.00015967,2]
[421085836,1777005057359,-256.0,0.00015967,2]
[421085837,1777005057368,-951.0,0.00015967,2]
[421085838,1777005057377,-1923.0,0.00015967,2]
[421085839,1777005057386,-1999.0,0.00015967,2]
[421085840,1777005057396,-570.85,0.00015982,2]
[421085841,1777005057405,-183.37,0.00015982,2]
[421085842,1777005057414,-568.19,0.00015983,2]
[421085843,1777005057424,-638.27,0.00015983,2]
[421085844,1777005057433,-638.38,0.00015983,2]
[421085845,1777005057442,-477.85,0.00015983,2]
[421085846,1777005057452,-183.36,0.00015983,2]
[421085847,1777005057461,-478.0,0.00015983,2]
[421085848,1777005057470,-641.31,0.00015986,2]
[421085849,1777005057479,-183.42,0.00015986,2]
[421085850,1777005057489,-568.19,0.00015986,2]
[421085851,1777005057498,-183.38,0.00015986,2]
[421085852,1777005057507,-567.92,0.00015986,2]
[421085853,1777005057517,-183.4,0.00015986,2]
[421085854,1777005057526,-201.23,0.00015986,2]
[421085855,1777005057535,-638.38,0.00015986,2]
[421085856,1777005057544,-569.77,0.00015986,2]
[421085857,1777005057553,-568.11,0.00015986,2]
[421085858,1777005057562,-183.4,0.00015986,2]
[421085859,1777005057571,-638.19,0.00015986,2]
[421085860,1777005057580,-568.19,0.00015986,2]
[421085861,1777005057590,-570.44,0.00015986,2]
[421085862,1777005057599,-570.17,0.00015986,2]
[421085863,1777005057607,-638.38,0.0001599,2]
[421085864,1777005057617,-638.38,0.0001599,2]
[421085865,1777005057626,-640.0,0.00015991,2]
[421085866,1777005057635,-162.24500663,0.00016,3]
[421085867,1777005057644,-160.0,0.00016,3]
[421085868,1777005057653,-13651.771,0.00016,2]
[421085869,1777005057662,-200.0,0.00016,2]
[421085870,1777005057671,-418.26049086,0.00016,2]
[421085871,1777005057680,-200.0,0.00016028,2]
[421085872,1777005057689,-500.0,0.00016088,2]
[421085873,1777005057698,-418.26049086,0.000161,2]
[421085874,1777005057707,-1750.18,0.00016115,2]
[421085875,1777005057717,-1264.98,0.00016115,2]
[421085876,1777005057726,-698.23,0.00016115,2]
[421085877,1777005057735,-152.22242281,0.00016116,2]
[421085878,1777005057744,-9999.99,0.00016116,2]
[421085879,1777005057754,-503.0,0.0001616,4]
[421085880,1777005057763,-418.26049086,0.000162,2]
[421085881,1777005057772,-7150.53,0.00016355,2]
[421085882,1777005057781,-719.32467951,0.00016376,2]
[421085883,1777005057790,-523.56483849,0.00016376,2]
[421085884,1777005057800,-2000.0,0.000164,2]
[421085885,1777005057809,-500.0,0.00016437,2]
[421085886,1777005057820,-5775.5,0.00016438,2]
[421085887,1777005057829,-2500.0,0.00016438,2]
[421085888,1777005057839,-2500.0,0.00016438,2]
[421085889,1777005057848,-2500.0,0.00016438,2]
[421085890,1777005057857,-2500.0,0.00016438,2]
[421085891,1777005057867,-2500.0,0.00016438,2]
[421085892,1777005057877,-2500.0,0.00016438,2]
[421085893,1777005057886,-2500.0,0.00016438,2]
[421085894,1777005057895,-2500.0,0.00016438,2]
[421085895,1777005057904,-2500.0,0.00016438,2]
[421085896,1777005057913,-2500.0,0.00016438,2]
[421085897,1777005057922,-2500.0,0.00016438,2]
[421085898,1777005057930,-2500.0,0.00016438,2]
[421085899,1777005057941,-2500.0,0.00016438,2]
[421085900,1777005057950,-2500.0,0.00016438,2]
[421085901,1777005057959,-2500.0,0.00016438,2]
[421085902,1777005057968,-2500.0,0.00016438,2]
[421085903,1777005057977,-2500.0,0.00016438,2]
[421085904,1777005057987,-345.3552028,0.00016438,2]
[421085905,1777005057996,-500.0,0.00016438,2]
[421085906,1777005058005,-500.0,0.00016438,2]
[421085907,1777005058014,-500.0,0.00016438,2]
[421085908,1777005058023,-500.0,0.00016438,2]
[421085909,1777005058032,-500.0,0.00016438,2]
[421085910,1777005058041,-500.0,0.00016438,2]
[421085911,1777005058050,-500.0,0.00016438,2]
[421085912,1777005058060,-500.0,0.00016438,2]
[421085913,1777005058069,-500.0,0.00016438,2]
[421085914,1777005058078,-500.0,0.00016438,2]
[421085915,1777005058087,-500.0,0.00016438,2]
[421085916,1777005058096,-500.0,0.00016438,2]
[421085917,1777005058105,-500.0,0.00016438,2]
[421085918,1777005058115,-500.0,0.00016438,2]
[421085919,1777005058124,-500.0,0.00016438,2]
[421085920,1777005058133,-500.0,0.00016438,2]
[421085921,1777005058143,-500.0,0.00016438,2]
[421085922,1777005058152,-500.0,0.00016438,2]
[421085923,1777005058161,-500.0,0.00016438,2]
[421085924,1777005058171,-500.0,0.00016438,2]
[421085925,1777005058180,-500.0,0.00016438,2]
[421085926,1777005058189,-500.0,0.00016438,2]
[421085927,1777005058198,-500.0,0.00016438,2]
[421085928,1777005058207,-500.0,0.00016438,2]
[421085929,1777005058216,-500.0,0.00016438,2]
[421085930,1777005058225,-500.0,0.00016438,2]
[421085931,1777005058235,-500.0,0.00016438,2]
[421085932,1777005058244,-500.0,0.00016438,2]
[421085933,1777005058253,-500.0,0.00016438,2]
[421085934,1777005058262,-500.0,0.00016438,2]
[421085935,1777005058271,-500.0,0.00016438,2]
[421085936,1777005058280,-500.0,0.00016438,2]
[421085937,1777005058289,-500.0,0.00016438,2]
[421085938,1777005058300,-500.0,0.00016438,2]
[421085939,1777005058309,-500.0,0.00016438,2]
[421085940,1777005058319,-500.0,0.00016438,2]
[421085941,1777005058328,-500.0,0.00016438,2]
[421085942,1777005058337,-337.72176444,0.00016438,2]
[421085943,1777005058347,-500.0,0.00016438,2]
[421085944,1777005058356,-500.0,0.00016438,2]
[421085945,1777005058365,-500.0,0.00016438,2]
[421085946,1777005058375,-500.0,0.00016438,2]
[421085947,1777005058385,-500.0,0.00016438,2]
[421085948,1777005058395,-500.0,0.00016438,2]
[421085949,1777005058404,-500.0,0.00016438,2]
[421085950,1777005058413,-500.0,0.00016438,2]
[421085951,1777005058422,-500.0,0.00016438,2]
[421085952,1777005058432,-500.0,0.00016438,2]
[421085953,1777005058441,-500.0,0.00016438,2]
[421085954,1777005058451,-500.0,0.00016438,2]
[421085955,1777005058460,-500.0,0.00016438,2]
[421085956,1777005058469,-500.0,0.00016438,2]
[421085957,1777005058479,-500.0,0.00016438,2]
[421085958,1777005058488,-500.0,0.00016438,2]
[421085959,1777005058497,-500.0,0.00016438,2]
[421085960,1777005058507,-500.0,0.00016438,2]
[421085961,1777005058516,-500.0,0.00016438,2]
[421085962,1777005058527,-500.0,0.00016438,2]
[421085963,1777005058539,-500.0,0.00016438,2]
[421085964,1777005058552,-500.0,0.00016438,2]
[421085965,1777005058564,-500.0,0.00016438,2]
[421085966,1777005058576,-500.0,0.00016438,2]
[421085967,1777005058588,-25.89918128,0.00016438,2]
[421085968,1777005059420,-1821.038642,8.952e-05,2]
[421085969,1777005059431,-631.293396,9.805e-05,2]
[421085970,1777005059442,-339.927213,0.00011084,2]
[421085971,1777005059453,-402.66030194,0.00016438,2]
[421085972,1777005059481,-3546.534,8.72e-05,2]
[421085973,1777005059498,-71.44051678,0.00016438,2]
[421085974,1777005059511,-500.0,0.00016438,2]
[421085975,1777005059523,-500.0,0.00016438,2]
[421085976,1777005059536,-500.0,0.00016438,2]
[421085977,1777005059548,-500.0,0.00016438,2]
[421085978,1777005059561,-500.0,0.00016438,2]
[421085979,1777005059573,-500.0,0.00016438,2]
[421085980,1777005059588,-500.0,0.00016438,2]
[421085981,1777005059599,-500.0,0.00016438,2]
[421085982,1777005059612,-500.0,0.00016438,2]
[421085983,1777005059623,-500.0,0.00016438,2]
[421085984,1777005059635,-500.0,0.00016438,2]
[421085985,1777005059647,-400.0,0.00016438,2]
[421085986,1777005059659,-500.0,0.00016438,2]
[421085987,1777005059672,-500.0,0.00016438,2]
[421085988,1777005059685,-500.0,0.00016438,2]
[421085989,1777005059697,-500.0,0.00016438,2]
[421085990,1777005059709,-500.0,0.00016438,2]
[421085991,1777005059721,-500.0,0.00016438,2]
[421085992,1777005059734,-500.0,0.00016438,2]
[421085993,1777005059748,-500.0,0.00016438,2]
[421085994,1777005059760,-500.0,0.00016438,2]
[421085995,1777005059772,-250.43525244,0.00016438,2]
[421085996,1777005059784,-310.623458,0.00016438,2]
[421085997,1777005059795,-310.623458,0.00016438,2]
[421085998,1777005059806,-310.623458,0.00016438,2]
[421085999,1777005059817,-310.623458,0.00016438,2]
[421086000,1777005059828,-310.623458,0.00016438,2]
[421086001,1777005059840,-310.623458,0.00016438,2]
[421086002,1777005059852,-310.623458,0.00016438,2]
[421086003,1777005059868,-310.623458,0.00016438,2]
[421086004,1777005059882,-310.623458,0.00016438,2]
[421086005,1777005059895,-310.623458,0.00016438,2]
[421086006,1777005059908,-310.623458,0.00016438,2]
[421086007,1777005059920,-310.623458,0.00016438,2]
[421086008,1777005059932,-310.623458,0.00016438,2]
[421086009,1777005059945,-310.623458,0.00016438,2]
[421086010,1777005059957,-310.623458,0.00016438,2]
[421086011,1777005059970,-310.623458,0.00016438,2]
[421086012,1777005059981,-310.623458,0.00016438,2]
[421086013,1777005059993,-310.623458,0.00016438,2]
[421086014,1777005060004,-310.623458,0.00016438,2]
[421086015,1777005060016,-310.623468,0.00016438,2]
[421086016,1777005060028,-151.0,0.00016438,2]
[421086017,1777005060039,-163.520453,0.00016438,2]
[421086018,1777005060052,-500.0,0.00016438,2]
[421086019,1777005060065,-300.0,0.00016438,3]
[421086020,1777005060077,-300.0,0.00016438,3]
[421086021,1777005060089,-300.0,0.00016438,3]